bitfinex/quotes_ETHUSD_20240828
["timestamp","ask_amount","ask_price","bid_price","bid_amount"]
[1724833104865,9.4939,2462.8,2462.2,7.0613]
[1724833105164,9.4939,2462.8,2462.4,4.06099]
[1724833105367,4.06067,2462.7,2462.1,4.06147]
[1724833105571,8.12135,2462.7,2462.1,4.06147]
[1724833105888,4.06075,2462.6,2462.0,4.06164]
[1724833106082,5.9578173,2462.6,2462.0,4.46964]
[1724833106433,5.9578173,2462.6,2462.0,8.53129]
[1724833106778,4.06067,2462.7,2462.2,4.06127]
[1724833106979,9.4939,2462.8,2462.1,0.08122949]
[1724833107143,9.4939,2462.8,2462.4,4.06098]
[1724833107471,9.4939,2462.8,2462.5,8.12163]
[1724833107767,9.4939,2462.8,2462.4,4.06095]
[1724833108070,9.4939,2462.8,2462.0,4.4697]
[1724833108071,9.4939,2462.8,2462.5,4.06082]
[1724833108567,9.4939,2462.8,2462.4,4.06103]
[1724833108728,9.4939,2462.8,2462.3,4.06109]
[1724833108933,1.761455,2462.8,2462.0,0.408]
[1724833109133,9.4635,2462.7,2462.1,4.0615]
[1724833109388,9.4635,2463.1,2462.5,4.06081]
[1724833109716,4.06017,2463.0,2462.3,4.06112]
[1724833109901,4.06034,2462.9,2462.3,4.06112]
[1724833110072,4.06034,2462.9,2462.4,4.06106]
[1724833110272,4.06034,2462.9,2462.3,4.06112]
[1724833110673,4.06034,2462.9,2462.4,4.06103]
[1724833110927,5.23983464,2462.9,2462.4,4.06103]
[1724833111073,5.23983464,2462.9,2462.3,4.06112]
[1724833111274,5.23983464,2462.9,2462.3,8.12222]
[1724833111587,4.06042,2462.8,2462.3,4.0611]
[1724833111787,4.06042,2462.8,2462.1,4.06146]
[1724833111788,9.9794,2462.7,2462.1,4.06146]
[1724833112005,4.06083,2462.6,2462.1,4.06146]
[1724833112206,4.06083,2462.6,2462.0,4.46969]
[1724833112584,10.50339146,2462.7,2462.0,0.48923027]
[1724833112788,9.9794,2462.7,2462.0,0.48923027]
[1724833113004,9.9794,2462.7,2462.0,4.55090027]
[1724833113333,9.9794,2462.7,2462.4,4.06107]
[1724833113687,9.9794,2462.7,2462.4,8.12203]
[1724833113995,9.9794,2462.7,2462.5,4.06082]
[1724833114593,9.9794,2462.7,2462.4,4.06096]
[1724833115583,9.9794,2462.7,2462.4,4.06095]
[1724833115786,9.9794,2462.7,2462.5,4.06091]
[1724833116010,9.2509,2463.0,2462.5,0.08121506]
[1724833116204,9.2509,2463.0,2462.7,8.121]
[1724833116524,9.2509,2463.0,2462.7,4.06049]
[1724833116685,9.2509,2463.0,2462.8,4.06041]
[1724833117966,9.2509,2463.0,2462.9,4.06025]
[1724833118369,7.44,2463.2,2463.0,4.06]
[1724833118524,7.44,2463.2,2462.8,4.06041]
[1724833118720,7.44,2463.2,2462.6,4.06063]
[1724833118721,13.17672,2463.2,2462.7,4.06054]
[1724833118923,4.06026,2462.9,2462.4,4.06095]
[1724833119125,9.735626,2462.8,2462.4,4.06095]
[1724833119346,9.3296,2462.8,2462.4,4.06095]
[1724833119950,9.3296,2462.8,2462.2,4.4693]
[1724833119951,4.06058,2462.7,2462.2,4.46926]
[1724833120129,13.39002,2462.8,2462.4,4.06107]
[1724833120470,13.39002,2462.8,2462.2,4.46926]
[1724833120769,13.39002,2462.8,2462.3,4.06124]
[1724833120975,15.135043,2462.8,2462.3,4.06124]
[1724833121280,15.135043,2462.8,2462.2,4.46926]
[1724833121281,15.135043,2462.8,2462.4,4.06105]
[1724833121779,15.135043,2462.8,2462.3,4.06124]
[1724833121984,15.135043,2462.8,2462.3,4.06121]
[1724833122170,19.195553,2462.8,2462.3,4.06121]
[1724833122483,15.135043,2462.8,2462.3,4.06121]
[1724833122679,9.3296,2462.8,2462.4,4.06106]
[1724833122998,9.3296,2462.8,2462.5,4.06081]
[1724833123174,9.3296,2462.8,2462.7,4.06058]
[1724833124056,9.3296,2462.8,2462.6,4.06069]
[1724833124979,9.3296,2462.8,2462.6,4.06065]
[1724833125388,9.3296,2462.8,2462.4,4.14215884]
[1724833125389,17.3008,2463.2,2462.9,4.06023]
[1724833125678,17.3008,2463.2,2462.9,8.1204]
[1724833125888,17.3008,2463.2,2462.6,4.06071]
[1724833126042,17.3008,2463.2,2463.1,4.05992]
[1724833127754,9.0668,2463.5,2463.0,4.06007]
[1724833128089,4.05952,2463.4,2462.9,4.06023]
[1724833128443,14.07534761,2463.5,2463.0,4.06007]
[1724833128444,18.13474761,2463.5,2463.0,4.06007]
[1724833128650,4.05943,2463.4,2463.0,4.06007]
[1724833128874,6.27884776,2463.4,2463.0,4.06007]
[1724833130488,13.12607,2463.5,2463.0,4.06001]
[1724833130788,9.0668,2463.5,2463.0,4.06001]
[1724833130952,0.42507612,2463.7,2463.2,4.05973]
[1724833131274,20.58311,2463.8,2463.2,4.05967]
[1724833131588,20.58311,2463.8,2463.3,4.0595]
[1724833131998,16.5242,2463.8,2463.3,4.0595]
[1724833132353,20.58299,2463.8,2463.3,4.0595]
[1724833132890,16.5242,2463.8,2463.4,4.05939]
[1724833133481,20.58303,2463.8,2463.3,4.0595]
[1724833133853,20.58303,2463.8,2463.3,8.11901]
[1724833134053,13.14303,2463.8,2463.3,8.11901]
[1724833134499,13.14303,2463.8,2463.3,4.0595]
[1724833134658,13.14303,2463.8,2463.0,0.408]
[1724833134659,4.05926,2463.5,2463.0,0.408]
[1724833134857,4.05926,2463.5,2463.0,7.46797]
[1724833135392,4.05952,2463.4,2462.8,4.46831]
[1724833135596,0.42501491,2464.0,2463.0,4.06007]
[1724833135597,9.9576,2463.3,2463.0,4.06007]
[1724833135896,4.05943,2463.4,2463.0,4.06007]
[1724833136112,18.07606,2463.6,2463.0,8.12007]
[1724833136311,15.824416,2463.6,2463.0,8.12]
[1724833136512,15.824416,2463.6,2463.0,4.06]
[1724833136812,4.05951,2463.4,2462.9,4.06019]
[1724833137015,4.05936,2463.5,2463.0,4.06008]
[1724833137219,4.05936,2463.5,2462.9,0.08119667]
[1724833137220,9.9576,2463.6,2463.1,4.05983]
[1724833137731,4.05927,2463.5,2462.9,4.06018]
[1724833137908,4.05945,2463.4,2462.9,4.06018]
[1724833138221,4.05945,2463.4,2462.9,8.12034]
[1724833138515,4.0596,2463.3,2462.8,4.46841]
[1724833138724,13.37267,2463.2,2462.7,4.06047]
[1724833139018,4.05994,2463.1,2462.6,7.06073]
[1724833139320,9.3128,2463.2,2462.8,4.06027]
[1724833139815,9.3128,2463.2,2462.9,4.06025]
[1724833140205,7.44,2463.6,2463.1,4.05992]
[1724833140376,7.44,2463.6,2463.0,4.05999]
[1724833140377,9.2318,2463.5,2463.0,4.05999]
[1724833140576,15.364249,2463.5,2463.0,8.11998]
[1724833140782,9.2318,2463.5,2463.1,4.05992]
[1724833141014,9.2318,2463.5,2462.6,7.51696698]
[1724833141198,9.2318,2463.5,2463.0,4.05997]
[1724833141517,7.44,2463.6,2463.4,4.05943]
[1724833141693,7.44,2463.6,2463.5,4.05926]
[1724833141900,9.9672,2463.8,2463.4,4.05943]
[1724833142312,9.9672,2463.8,2463.4,4.05931]
[1724833142522,9.9672,2463.8,2463.2,4.14081416]
[1724833142732,9.9672,2463.8,2463.3,4.05945]
[1724833142894,4.05895,2463.7,2463.3,4.05945]
[1724833143094,9.9672,2463.8,2463.3,4.05945]
[1724833143923,7.86501491,2464.0,2463.9,4.0586]
[1724833143924,0.17923319,2464.0,2463.9,4.0586]
[1724833144248,9.5196,2464.4,2464.1,4.05814]
[1724833144836,9.5196,2464.4,2464.1,8.11632]
[1724833145038,9.5196,2464.7,2464.4,4.05778]
[1724833146942,14.5096,2464.7,2464.6,4.05745]
[1724833147262,4.99,2464.7,2464.6,4.05745]
[1724833147645,4.99,2464.7,2464.4,4.13878458]
[1724833147646,9.2491,2464.7,2464.0,3.408]
[1724833147844,9.2491,2464.7,2464.1,4.0582]
[1724833148130,9.2491,2464.7,2464.2,8.11616]
[1724833148337,9.2491,2464.7,2464.2,4.05808]
[1724833148544,9.2491,2464.7,2464.0,4.80709]
[1724833148747,9.3645,2464.3,2463.6,4.05898]
[1724833148947,9.3645,2464.3,2463.3,4.51696698]
[1724833148948,9.3645,2464.3,2463.8,4.05875]
[1724833149247,9.3645,2464.3,2463.8,4.464625]
[1724833149447,9.3645,2464.6,2464.2,4.05811]
[1724833149803,9.3645,2464.6,2464.0,4.05829]
[1724833150037,9.3645,2464.6,2464.1,4.05822]
[1724833150411,9.3645,2464.6,2463.8,4.05867]
[1724833150656,4.05824,2464.2,2463.7,4.05893]
[1724833150952,9.3004,2464.1,2463.7,4.05883]
[1724833151159,9.3004,2464.1,2463.8,4.05876]
[1724833151459,9.3004,2464.1,2463.6,8.11794]
[1724833151763,9.3004,2464.1,2463.7,4.05889]
[1724833151921,0.93004,2464.1,2463.2,4.4677]
[1724833152127,13.91797,2463.8,2463.3,4.05958]
[1724833152436,9.8592,2463.8,2463.4,4.05942]
[1724833152743,13.91805,2463.8,2463.2,4.4676]
[1724833153057,9.8592,2463.8,2463.2,4.05964]
[1724833153264,9.8592,2463.8,2463.4,4.05934]
[1724833153621,13.91799,2463.8,2463.2,8.52729]
[1724833153865,13.91799,2463.8,2463.2,4.05964]
[1724833154169,9.4472,2463.7,2462.8,4.4683]
[1724833154367,9.4472,2463.3,2462.8,4.4683]
[1724833154569,9.4472,2463.3,2462.8,4.46825]
[1724833154725,9.4472,2463.3,2462.8,8.52857]
[1724833154929,9.4472,2463.3,2462.8,4.46825]
[1724833155167,9.4472,2463.3,2462.9,4.06016]
[1724833155334,9.4472,2463.3,2462.8,8.52858]
[1724833155523,9.4472,2463.3,2462.8,4.46825]
[1724833155864,9.4472,2463.3,2462.9,4.06023]
[1724833156158,9.4472,2463.3,2462.5,3.0]
[1724833156159,4.05993,2463.1,2462.5,4.0609]
[1724833156363,9.414,2462.8,2462.4,8.12201]
[1724833156519,9.414,2462.8,2462.3,0.408]
[1724833156726,17.0682,2463.2,2462.5,4.0609]
[1724833156956,17.0682,2463.2,2462.8,8.12074]
[1724833157137,17.0682,2463.2,2462.5,0.45981784]
[1724833157474,17.0682,2463.2,2462.6,4.06065]
[1724833157623,21.12797,2463.2,2462.7,4.06057]
[1724833157823,21.12797,2463.2,2462.6,4.0606]
[1724833158042,4.05992,2463.1,2462.6,8.12125]
[1724833158358,17.0682,2463.2,2462.7,4.06043]
[1724833158561,17.0682,2463.2,2462.7,8.1209]
[1724833158764,17.0682,2463.2,2462.8,4.0604]
[1724833158968,21.12797,2463.2,2462.7,4.06043]
[1724833159126,17.0682,2463.2,2462.7,8.12091]
[1724833159326,17.0682,2463.2,2462.7,4.06043]
[1724833159529,17.0682,2463.2,2462.8,4.06033]
[1724833159723,21.12806,2463.2,2462.7,4.06043]
[1724833159968,4.05993,2463.1,2462.6,0.408]
[1724833160127,4.05993,2463.1,2462.6,4.46872]
[1724833160334,19.180989,2463.2,2462.7,4.06053]
[1724833160629,19.180989,2463.2,2462.8,0.0812114]
[1724833160630,7.44,2463.2,2462.8,0.0812114]
[1724833160825,9.9426,2463.5,2463.3,4.05947]
[1724833161046,9.9426,2463.5,2463.4,8.11886]
[1724833161246,14.4923,2463.8,2463.4,4.05943]
[1724833161447,14.4923,2463.8,2463.6,4.05906]
[1724833161861,14.4923,2463.8,2463.4,4.46732]
[1724833162367,21.150161,2463.8,2463.4,0.408]
[1724833162662,13.11417,2463.7,2463.4,0.408]
[1724833162865,13.11417,2463.7,2463.3,0.408]
[1724833163051,13.11417,2463.7,2462.9,4.46814]
[1724833163052,9.4843,2463.4,2462.9,4.46814]
[1724833163250,13.54382,2463.4,2462.9,4.46814]
[1724833163629,2.4762031,2463.7,2462.9,0.408]
[1724833163630,9.4843,2463.2,2462.9,0.408]
[1724833164135,9.4843,2463.2,2462.1,11.2625]
[1724833164136,13.54406,2463.2,2462.6,4.06062]
[1724833164339,13.54406,2463.2,2462.7,4.06054]
[1724833164544,11.244674,2463.2,2462.8,4.06041]
[1724833164845,9.4843,2463.2,2462.8,4.06041]
[1724833165041,9.4843,2463.2,2462.9,4.06011]
[1724833165251,9.4843,2463.2,2462.9,8.12027]
[1724833165761,9.4843,2463.2,2462.9,4.06011]
[1724833166168,9.4843,2463.2,2463.0,4.06008]
[1724833166369,9.4843,2463.2,2462.8,4.06031]
[1724833166532,9.4843,2463.2,2463.0,4.06008]
[1724833166862,9.4843,2463.2,2463.0,8.12007]
[1724833167229,9.4843,2463.2,2463.0,4.05999]
[1724833168069,9.4843,2463.2,2462.8,8.12057]
[1724833168229,9.4843,2463.2,2462.9,4.06016]
[1724833168876,9.4843,2463.2,2462.8,4.06026]
[1724833169080,9.326,2463.0,2462.6,4.06072]
[1724833169437,4.06033,2462.9,2462.5,0.408]
[1724833169683,4.06033,2462.9,2462.2,4.06128]
[1724833169684,4.06059,2462.7,2462.2,4.06128]
[1724833169842,4.06059,2462.7,2462.3,4.06123]
[1724833170165,9.7502,2462.1,2461.8,4.06206]
[1724833170676,9.7502,2462.1,2462.0,4.06173]
[1724833172956,9.7502,2462.1,2461.8,8.12389]
[1724833173272,9.7502,2462.1,2461.9,4.06182]
[1724833173474,9.7502,2462.1,2461.8,4.06191]
[1724833173943,9.7502,2462.1,2461.9,4.0619]
[1724833174137,9.7502,2462.1,2461.8,4.06191]
[1724833174373,9.7502,2462.1,2462.0,4.06173]
[1724833174843,9.7502,2462.1,2461.9,8.1237]
[1724833175041,9.7502,2462.1,2462.0,4.06173]
[1724833175273,4.06033,2462.9,2462.2,4.06138]
[1724833175274,9.2202,2462.6,2462.2,4.06138]
[1724833175574,9.2202,2462.6,2461.9,0.08122466]
[1724833175775,9.04877,2463.8,2462.8,4.06035]
[1724833175776,9.2202,2463.2,2462.8,4.06035]
[1724833176384,9.2202,2463.2,2462.9,4.06024]
[1724833176594,9.2202,2463.2,2463.1,4.05992]
[1724833177450,9.4563,2463.6,2462.8,4.06038]
[1724833177650,13.51542,2463.6,2463.1,4.05979]
[1724833177854,13.51542,2463.6,2462.9,4.06013]
[1724833178051,13.51542,2463.6,2463.0,4.05998]
[1724833178376,17.57461,2463.6,2463.1,4.05988]
[1724833178550,19.83104,2463.6,2463.1,4.05988]
[1724833178748,15.77185,2463.6,2463.1,4.05988]
[1724833178975,11.71273,2463.6,2463.2,4.05975]
[1724833179277,9.4563,2463.6,2463.2,4.05968]
[1724833179439,9.4563,2463.6,2463.2,4.05966]
[1724833180090,9.4563,2463.6,2463.4,4.05941]
[1724833180241,9.4563,2463.6,2463.4,8.11876]
[1724833180750,9.4563,2463.6,2463.5,4.05926]
[1724833180939,9.4563,2463.6,2463.3,4.05956]
[1724833183290,9.4563,2463.6,2463.4,4.05939]
[1724833183783,9.4563,2463.6,2463.4,4.05934]
[1724833183984,9.4563,2463.6,2463.4,8.11869]
[1724833184190,9.4563,2463.6,2463.4,4.05933]
[1724833184362,9.4563,2463.6,2463.5,4.05926]
[1724833186355,9.4563,2463.6,2463.4,4.05941]
[1724833186578,9.4563,2463.6,2463.4,4.05934]
[1724833186889,9.4563,2463.6,2463.0,0.53287719]
[1724833187104,4.99,2463.8,2463.2,4.1088899]
[1724833187256,4.99,2463.8,2463.7,4.05893]
[1724833187459,14.0296,2464.0,2463.8,4.05876]
[1724833187954,18.08808,2464.0,2463.6,4.05894]
[1724833188150,14.0296,2464.0,2463.6,4.51062899]
[1724833188393,4.99,2464.0,2463.9,4.0586]
[1724833188697,9.2742,2464.1,2463.7,8.1176]
[1724833188894,9.2742,2464.1,2463.7,8.11762]
[1724833189096,9.2742,2464.1,2463.7,4.05878]
[1724833189394,4.05859,2464.0,2463.5,8.52642]
[1724833189553,9.2742,2464.1,2463.6,4.05901]
[1724833189752,9.2742,2464.1,2463.7,4.05882]
[1724833190886,9.2742,2464.1,2463.8,4.0586]
[1724833191255,9.2742,2464.1,2463.9,4.05851]
[1724833191461,4.05844,2464.0,2463.4,4.05931]
[1724833191693,13.33247,2464.1,2463.6,4.05902]
[1724833191879,4.05855,2464.0,2463.4,4.05931]
[1724833192896,9.9603,2463.7,2463.2,4.05968]
[1724833193099,9.9603,2463.7,2463.3,4.05951]
[1724833193797,9.9603,2463.7,2463.4,4.05932]
[1724833194573,4.05854,2464.0,2463.2,0.38118605]
[1724833194574,9.8575,2464.0,2463.2,0.38118605]
[1724833194897,3.50652126,2465.2,2463.2,0.38118605]
[1724833194898,9.8575,2464.3,2463.9,4.05851]
[1724833195403,9.8575,2464.3,2463.6,4.46704]
[1724833195571,9.8575,2464.3,2463.6,0.408]
[1724833195757,13.9156,2464.3,2463.8,4.05876]
[1724833195955,4.48193907,2464.9,2463.6,3.48917433]
[1724833195956,4.05747,2464.6,2464.1,4.05818]
[1724833196161,9.55422907,2464.9,2464.5,4.05752]
[1724833196485,9.1293,2464.9,2464.5,4.05752]
[1724833196986,9.1293,2464.9,2464.5,0.407]
[1724833197500,9.1293,2464.9,2464.5,4.911082]
[1724833198005,0.1216114,2465.0,2464.6,4.05734]
[1724833198209,0.1216114,2465.0,2464.7,4.05723]
[1724833198370,0.1216114,2465.0,2464.9,8.1139]
[1724833198574,0.1216114,2465.0,2464.9,11.1139]
[1724833198758,0.1216114,2465.0,2464.9,7.05695]
[1724833199262,0.1216114,2465.0,2464.9,7.13808041]
[1724833199489,0.1216114,2465.0,2464.9,11.19503041]
[1724833199688,0.1216114,2465.0,2464.9,11.71351741]
[1724833200778,0.1216114,2465.0,2464.9,16.72746741]
[1724833201115,0.09,2466.0,2465.9,4.05531]
[1724833201264,0.09,2466.0,2465.9,8.516151]
[1724833201469,0.09,2466.0,2465.9,9.066151]
[1724833201680,0.09,2466.0,2465.9,17.420961]
[1724833201889,1e-05,2466.0,2465.9,24.069271]
[1724833202068,9.5899,2467.0,2466.8,8.10745]
[1724833202390,4.99,2467.3,2467.2,12.15951]
[1724833202593,4.99,2467.3,2467.2,13.57879238]
[1724833202908,4.99,2467.3,2467.0,4.05343]
[1724833203109,14.1673,2467.4,2466.9,3.407]
[1724833203314,14.1673,2467.4,2466.9,0.407]
[1724833203471,4.05335,2467.1,2466.9,0.407]
[1724833203667,4.99,2467.3,2466.9,0.407]
[1724833204368,4.99,2467.3,2466.6,0.407]
[1724833204596,4.05381,2466.9,2466.3,9.52700238]
[1724833205079,9.7232,2466.8,2466.3,9.93399238]
[1724833205283,4.05414,2466.7,2466.0,5.99113138]
[1724833205479,4.05427,2466.6,2466.0,5.47245238]
[1724833205677,13.77703,2466.8,2466.2,4.05471]
[1724833205902,4.0542,2466.6,2466.0,5.87945238]
[1724833206411,4.0542,2466.6,2466.0,9.93448238]
[1724833206620,13.77703,2466.8,2466.1,4.13605104]
[1724833206771,13.77709,2466.8,2466.2,4.0548]
[1724833206972,13.98029,2467.2,2466.6,4.05405]
[1724833207336,13.98029,2467.2,2466.6,8.1081]
[1724833207618,9.9271,2467.2,2466.7,4.05383]
[1724833207768,9.9271,2467.2,2466.7,8.10771]
[1724833208116,0.1216114,2467.5,2466.9,4.05353]
[1724833208405,4.05329,2467.2,2466.6,12.52649238]
[1724833208604,4.05313,2467.3,2466.6,12.52649238]
[1724833208773,4.05313,2467.3,2466.7,4.05387]
[1724833208973,4.05306,2467.3,2466.7,4.05387]
[1724833209169,4.05303,2467.3,2466.8,0.08107092]
[1724833209496,8.10591,2467.4,2466.8,4.13479092]
[1724833209831,4.47039614,2467.4,2466.7,0.08107092]
[1724833209984,9.4864114,2467.5,2467.0,4.05344]
[1724833210191,9.4864114,2467.5,2467.2,5.47245238]
[1724833210192,0.1216114,2467.5,2467.2,5.47245238]
[1724833210517,0.1216114,2467.5,2467.1,0.407]
[1724833210518,4.1744014,2467.5,2467.1,0.407]
[1724833210721,4.1744014,2467.5,2467.0,3.0]
[1724833211011,0.1216114,2467.5,2467.1,4.60333]
[1724833211521,4.05329,2467.2,2466.7,0.407]
[1724833211691,13.41767,2467.4,2466.8,0.08107124]
[1724833212014,13.41767,2467.4,2466.9,4.60351]
[1724833212015,9.3648,2467.4,2466.9,4.60351]
[1724833212310,4.05327,2467.2,2466.7,0.407]
[1724833212518,9.3648,2467.4,2466.7,0.407]
[1724833212727,0.1216114,2467.5,2467.3,4.05291]
[1724833212879,0.1216114,2467.5,2467.4,8.10568]
[1724833213081,0.1216114,2467.5,2467.4,4.05284]
[1724833213716,9.3671114,2467.5,2467.2,0.407]
[1724833214322,13.4199214,2467.5,2467.0,3.0]
[1724833214616,0.005,2467.4,2466.8,0.407]
[1724833214874,0.005,2467.4,2466.5,0.407]
[1724833214875,9.2455,2467.1,2466.5,0.407]
[1724833215031,4.05393,2466.8,2466.1,5.47245238]
[1724833215185,4.05361,2467.0,2466.3,4.05462]
[1724833215493,4.05384,2466.8,2466.2,4.05465]
[1724833215822,4.05376,2466.9,2466.3,4.05454]
[1724833215997,13.29947,2466.8,2466.1,0.407]
[1724833216316,17.35337,2466.8,2466.2,4.05481]
[1724833216503,17.35335,2466.8,2466.2,4.05481]
[1724833216831,9.2455,2466.8,2466.7,4.05399]
[1724833216984,4.99,2467.2,2466.9,4.05365]
[1724833217186,4.99,2467.2,2467.0,4.05339]
[1724833217392,0.005,2467.4,2467.1,4.13440251]
[1724833217393,4.995,2467.4,2467.1,4.13440251]
[1724833217613,4.995,2467.4,2467.1,4.68440251]
[1724833217929,4.995,2467.4,2467.3,4.05301]
[1724833218427,4.995,2467.4,2467.3,11.65602]
[1724833218847,4.995,2467.4,2467.3,12.06302]
[1724833219307,3.49050554,2467.4,2467.3,12.06302]
[1724833219504,3.49050554,2467.4,2467.3,21.58848238]
[1724833219803,3.49050554,2467.4,2467.3,33.63498238]
[1724833219804,1.99050554,2467.4,2467.3,33.63498238]
[1724833220025,1.99050554,2467.4,2467.3,28.16253]
[1724833220228,1.4e-06,2467.5,2467.4,16.61836]
[1724833220400,1.4e-06,2467.5,2467.4,20.16836]
[1724833220737,0.03,2468.2,2468.1,8.10338]
[1724833220943,0.03,2468.2,2468.1,14.12583238]
[1724833221316,0.03,2468.2,2468.1,25.47702238]
[1724833221504,4.1704414,2469.9,2468.7,4.05067]
[1724833221704,0.1216114,2469.9,2469.1,5.47245238]
[1724833222042,9.4222,2469.4,2469.0,4.0501]
[1724833222247,9.4222,2469.4,2468.8,8.47245238]
[1724833222539,9.4222,2469.4,2468.8,3.407]
[1724833222743,4.05016,2469.1,2468.6,3.08100694]
[1724833222906,4.05025,2469.0,2468.6,3.0]
[1724833223101,9.4222,2468.8,2468.6,3.0]
[1724833223303,9.4222,2468.8,2468.3,0.407]
[1724833223304,4.05071,2468.7,2468.3,0.407]
[1724833223538,9.4222,2468.8,2468.5,4.05098]
[1724833223722,9.4222,2468.8,2468.3,4.53927276]
[1724833223924,9.4222,2468.8,2468.5,8.10187]
[1724833224102,9.4222,2469.2,2468.6,0.08101277]
[1724833224304,9.4222,2469.2,2468.8,5.87945238]
[1724833224504,9.4222,2469.2,2468.9,0.08099769]
[1724833224706,4.05027,2469.0,2468.4,4.05109]
[1724833224904,0.405027,2468.9,2468.2,5.47245238]
[1724833225151,9.4222,2469.2,2468.7,4.05058]
[1724833225305,9.4222,2469.2,2468.5,5.47245238]
[1724833225306,9.4222,2469.2,2468.8,0.08099927]
[1724833225628,9.4222,2469.2,2468.7,4.05058]
[1724833225846,9.4222,2469.2,2468.8,4.13152928]
[1724833226017,9.4222,2469.5,2468.8,4.13150928]
[1724833226231,9.4222,2469.5,2469.0,4.05012]
[1724833226430,13.47171,2469.5,2468.9,4.60028]
[1724833226633,9.4222,2469.5,2469.0,4.13117627]
[1724833226847,9.4222,2469.5,2469.1,4.04996]
[1724833227170,4.05031,2469.0,2468.5,4.0509]
[1724833227464,4.05067,2468.8,2468.3,3.0]
[1724833227618,4.05137,2468.3,2467.7,4.05226]
[1724833227823,4.05137,2468.3,2467.7,4.0522]
[1724833228060,4.05123,2468.4,2467.8,0.08103483]
[1724833228268,5.65515655,2468.5,2467.9,4.05193]
[1724833228559,4.05163,2468.2,2467.5,4.05253]
[1724833228759,9.9991,2468.4,2467.8,4.05208]
[1724833229064,9.9991,2468.4,2467.7,0.08103482]
[1724833229065,4.05184,2468.1,2467.7,0.08103482]
[1724833229247,4.05184,2468.1,2467.4,5.47245238]
[1724833229248,4.05196,2468.0,2467.4,9.52517238]
[1724833229451,4.05196,2468.0,2467.4,9.93217238]
[1724833229760,4.05196,2468.0,2466.8,1.01528971]
[1724833229761,9.9991,2467.8,2466.8,6.48774209]
[1724833229964,4.05237,2467.7,2467.2,4.05308]
[1724833230124,4.05237,2467.7,2467.0,4.05336]
[1724833230321,11.98960554,2467.8,2467.7,4.05235]
[1724833230564,1.99050554,2467.8,2467.7,8.1047]
[1724833230764,14.05047,2468.3,2467.8,4.05214]
[1724833230923,4.05184,2468.1,2467.6,4.05249]
[1724833231124,15.55058,2468.3,2467.7,0.08103846]
[1724833231326,4.05172,2468.1,2467.4,4.05284]
[1724833231668,4.05172,2468.1,2467.5,0.08104472]
[1724833231838,4.05172,2468.1,2467.5,4.13371472]
[1724833232043,4.05172,2468.1,2467.6,0.06858423]
[1724833232044,14.05145,2467.7,2467.6,0.06858423]
[1724833232256,9.9991,2467.7,2467.6,0.06858423]
[1724833232579,9.9991,2467.7,2466.8,0.407]
[1724833232727,1.5,2467.5,2466.9,4.05355]
[1724833233063,1.5,2467.5,2467.1,4.05323]
[1724833233254,1.5,2467.5,2467.0,0.08105933]
[1724833233429,9.9991,2467.4,2467.0,0.08105954]
[1724833233764,9.9991,2467.4,2466.6,0.63477978]
[1724833233765,4.05313,2467.3,2466.6,0.407]
[1724833233926,4.05313,2467.3,2466.8,4.05381]
[1724833233927,9.2494,2467.2,2466.8,4.05381]
[1724833234262,9.2494,2467.2,2466.8,4.05373]
[1724833234764,9.2494,2467.2,2466.7,0.08106885]
[1724833235060,5.533693,2467.1,2466.6,0.407]
[1724833235267,4.05344,2467.1,2466.6,4.46115]
[1724833235771,9.2494,2467.2,2466.8,4.05382]
[1724833235969,9.2494,2467.2,2466.7,0.08107147]
[1724833236125,9.2494,2467.2,2466.8,4.05381]
[1724833236326,1.5,2467.3,2466.9,4.05364]
[1724833236527,1.5,2467.3,2467.2,4.05317]
[1724833236768,1.5,2467.7,2467.6,4.05252]
[1724833236965,9.3776,2468.1,2467.7,4.05231]
[1724833236966,10.8776,2468.1,2467.7,4.05231]
[1724833237135,10.8776,2468.1,2467.7,4.13329882]
[1724833237536,10.8776,2468.1,2467.8,4.05207]
[1724833237746,10.8776,2468.1,2467.8,4.13310873]
[1724833238037,4.05231,2467.8,2467.2,7.46003]
[1724833238235,4.05231,2467.8,2467.2,4.05303]
[1724833238561,1.5,2467.5,2467.0,8.10673]
[1724833238765,4.0527,2467.5,2466.9,7.05366]
[1724833239064,4.0531,2467.3,2466.8,0.407]
[1724833239371,4.0531,2467.3,2466.8,4.46072]
[1724833239576,4.05318,2467.2,2466.7,0.0810685]
[1724833239732,4.05318,2467.2,2466.4,4.05438]
[1724833239933,1.5,2467.0,2466.6,4.05405]
[1724833240151,1.5,2467.0,2466.7,0.08107141]
[1724833240468,4.05352,2467.0,2466.6,0.08107141]
[1724833240762,1.5,2467.1,2466.8,4.05373]
[1724833240929,1.5,2467.1,2466.9,4.05352]
[1724833241141,13.10393,2467.4,2467.1,4.05333]
[1724833241142,0.65347024,2467.3,2467.1,4.05333]
[1724833241341,0.65347024,2467.3,2467.0,0.05275995]
[1724833241577,0.65347024,2467.3,2467.0,4.0535]
[1724833241741,0.65347024,2467.3,2467.1,0.05275995]
[1724833241942,0.65347024,2467.3,2466.8,4.05381]
[1724833242184,0.65347024,2467.3,2467.2,0.05275995]
[1724833242498,0.65347024,2467.3,2467.0,4.0534]
[1724833242659,0.65347024,2467.3,2467.2,0.05275995]
[1724833242851,0.65347024,2467.3,2466.6,0.49478794]
[1724833242852,4.05345,2467.1,2466.6,0.49478794]
[1724833243177,4.05367,2466.9,2466.5,4.0542]
[1724833243344,9.7803,2467.0,2466.6,4.05407]